Workbook

Sheet 最终版62人
A1: 红桥区卫生健康系统事业单位2019年公开招聘工作人员 进入体检人员体检结果
A2: 序号 | B2: 姓名 | C2: 招聘单位 | D2: 招聘岗位 | E2: 身份证号 | F2: 准考证号 | G2: 笔试成绩 | H2: 面试成绩 | I2: 综合成绩 | J2: 体检结果
A3: 1 | B3: 焦如春 | C3: 红桥区卫健委-中医医院 | D3: 专技岗(中医临床医生2) | E3: 130981199004162427 | F3: 1907130819 | G3: 61 | H3: 85.4 | I3: =H3*0.5+G3*0.5 -> 73.2 | J3: 合格
A4: 2 | B4: 刘雅婧 | C4: 红桥区卫健委-中医医院 | D4: 专技岗(中医临床医生1) | E4: 120104199302105123 | F4: 1907130797 | G4: 59 | H4: 85.3 | I4: 72.15 | J4: 合格
A5: 3 | B5: 赵烊 | C5: 红桥区卫健委-中医医院 | D5: 专技岗(精神科医生) | E5: 120113199601031626 | F5: 1907130791 | G5: 43 | H5: 80.1 | I5: 61.55 | J5: 合格
A6: 4 | B6: 冀佳琛 | C6: 红桥区卫健委-中医医院 | D6: 专技岗(会计) | E6: 120101199311221522 | F6: 1907130118 | G6: 70 | H6: 80.6 | I6: 75.3 | J6: 合格
A7: 5 | B7: 张艺林 | C7: 红桥区卫健委-中医医院 | D7: 专技岗(护理) | E7: 130181199306305418 | F7: 1907130785 | G7: 36 | H7: 69.3 | I7: 52.65 | J7: 未查
A8: 6 | B8: 张莹方 | C8: 红桥区卫健委-中医医院 | D8: 专技岗(放射科医生) | E8: 120223199602065826 | F8: 1907130772 | G8: 55 | H8: 77.1 | I8: =H8*0.5+G8*0.5 -> 66.05 | J8: 合格
A9: 7 | B9: 孙塬野 | C9: 红桥区卫健委-中医医院 | D9: 管理岗 | E9: 120110199606233914 | F9: 1907130098 | G9: 76 | H9: 85.4 | I9: 80.7 | J9: 合格
A10: 8 | B10: 杨宗蒲 | C10: 红桥区卫健委-区属社区卫生服务中心 | D10: 专技岗(中医临床医生3) | E10: 371427199206014414 | F10: 1907130761 | G10: 56 | H10: 84.9 | I10: 70.45 | J10: 合格
A11: 9 | B11: 闫振兴 | C11: 红桥区卫健委-区属社区卫生服务中心 | D11: 专技岗(中医临床医生3) | E11: 142427198706300015 | F11: 1907130764 | G11: 52 | H11: 82.2 | I11: 67.1 | J11: 合格
A12: 10 | B12: 赵斯明 | C12: 红桥区卫健委-口腔医院 | D12: 专技岗(口腔临床医生1) | E12: 13063819940118654X | F12: 1907130333 | G12: 64 | H12: 83.1 | I12: 73.55 | J12: 因特殊情况，需补查
A13: 11 | B13: 杨晟 | C13: 红桥区卫健委-口腔医院 | D13: 专技岗(口腔临床医生1) | E13: 120103199112202110 | F13: 1907130313 | G13: 58 | H13: 81.8 | I13: 69.9 | J13: 未查
A14: 12 | B14: 高胜萍 | C14: 红桥区卫健委-口腔医院 | D14: 专技岗(口腔临床医生1) | E14: 360302199504023516 | F14: 1907130317 | G14: 56 | H14: 82.7 | I14: 69.35 | J14: 合格
A15: 13 | B15: 华萍 | C15: 红桥区卫健委-区属社区卫生服务中心 | D15: 专技岗(中医临床医生2) | E15: 411424199305100522 | F15: 1907130742 | G15: 61 | H15: 83.6 | I15: =H15*0.5+G15*0.5 -> 72.3 | J15: 合格
A16: 14 | B16: 张梦然 | C16: 红桥区卫健委-区属社区卫生服务中心 | D16: 专技岗(中医临床医生2) | E16: 120108199211030045 | F16: 1907130741 | G16: 59 | H16: 82.7 | I16: 70.85 | J16: 合格
A17: 15 | B17: 李利 | C17: 红桥区卫健委-区属社区卫生服务中心 | D17: 专技岗(中医临床医生2) | E17: 410821199110302521 | F17: 1907130751 | G17: 59 | H17: 79.2 | I17: 69.1 | J17: 合格
A18: 16 | B18: 王奕博 | C18: 红桥区卫健委-区属社区卫生服务中心 | D18: 专技岗(中药房) | E18: 120110199701260312 | F18: 1907130567 | G18: 58 | H18: 86.1 | I18: 72.05 | J18: 合格
A19: 17 | B19: 唐瑞 | C19: 红桥区卫健委-区属社区卫生服务中心 | D19: 专技岗(中药房) | E19: 120223199609132526 | F19: 1907130553 | G19: 53 | H19: 83.2 | I19: 68.1 | J19: 合格
A20: 18 | B20: 程佳琦 | C20: 红桥区卫健委-区属社区卫生服务中心 | D20: 专技岗(放射医生) | E20: 14220219960701022X | F20: 1907130376 | G20: 51 | H20: 79.0 | I20: 65 | J20: 合格
A21: 19 | B21: 赵嘉 | C21: 红桥区卫健委-口腔医院 | D21: 专技岗(会计) | E21: 130821198611071539 | F21: 1907130071 | G21: 55 | H21: 81.9 | I21: =H21*0.5+G21*0.5 -> 68.45 | J21: 合格
A22: 20 | B22: 彭琦 | C22: 红桥区卫健委-计划生育药具管理站 | D22: 专技岗(会计) | E22: 22010319890411162X | F22: 1907130070 | G22: 63 | H22: 84.6 | I22: 73.8 | J22: 合格
A23: 21 | B23: 马连炟 | C23: 红桥区卫健委-疾病预防控制中心 | D23: 专技岗(检验科) | E23: 120113199209062436 | F23: 1907130263 | G23: 65 | H23: 84.1 | I23: 74.55 | J23: 合格
A24: 22 | B24: 李鑫 | C24: 红桥区卫健委-疾病预防控制中心 | D24: 专技岗(检验科) | E24: 150926199601054511 | F24: 1907130266 | G24: 62 | H24: 80.5 | I24: 71.25 | J24: 合格
A25: 23 | B25: 王剑一 | C25: 红桥区卫健委-疾病预防控制中心 | D25: 专技岗(会计) | E25: 410105199301010048 | F25: 1907130059 | G25: 70 | H25: 82.5 | I25: =H25*0.5+G25*0.5 -> 76.25 | J25: 合格
A26: 24 | B26: 刘晓丽 | C26: 红桥区卫健委-疾病预防控制中心 | D26: 专技岗(公卫医生1) | E26: 142422198407204523 | F26: 1907130218 | G26: 40 | H26: 79.6 | I26: 59.8 | J26: 合格
A27: 25 | B27: 陈玮玮 | C27: 红桥区卫健委-疾病预防控制中心 | D27: 专技岗(公卫医生1) | E27: 130425199307097521 | F27: 1907130213 | G27: 35 | H27: 78.4 | I27: 56.7 | J27: 合格
A28: 26 | B28: 颜英才 | C28: 红桥区卫健委-区属社区卫生服务中心 | D28: 专技岗(临床医生) | E28: 120104199404282112 | F28: 1907130494 | G28: 67 | H28: 86.7 | I28: 76.85 | J28: 合格
A29: 27 | B29: 王雅情 | C29: 红桥区卫健委-区属社区卫生服务中心 | D29: 专技岗(临床医生) | E29: 120223199512202022 | F29: 1907130514 | G29: 63 | H29: 87.3 | I29: 75.15 | J29: 未查
A30: 28 | B30: 高华丽 | C30: 红桥区卫健委-区属社区卫生服务中心 | D30: 专技岗(临床医生) | E30: 342623199510168144 | F30: 1907130510 | G30: 67 | H30: 81.9 | I30: 74.45 | J30: 合格
A31: 29 | B31: 王子洋 | C31: 红桥区卫健委-区属社区卫生服务中心 | D31: 专技岗(临床医生) | E31: 130902199608270167 | F31: 1907130491 | G31: 66 | H31: 81.3 | I31: 73.65 | J31: 合格
A32: 30 | B32: 房蕊 | C32: 红桥区卫健委-区属社区卫生服务中心 | D32: 专技岗(临床医生) | E32: 12022319960329062X | F32: 1907130492 | G32: 62 | H32: 80.0 | I32: 71 | J32: 合格
A33: 31 | B33: 张瑜佳 | C33: 红桥区卫健委-区属社区卫生服务中心 | D33: 专技岗(临床医生) | E33: 13092219960125002X | F33: 1907130473 | G33: 62 | H33: 79.4 | I33: 70.7 | J33: 合格
A34: 32 | B34: 王嘉堃 | C34: 红桥区卫健委-区属社区卫生服务中心 | D34: 专技岗(临床医生) | E34: 341281199309160192 | F34: 1907130470 | G34: 58 | H34: 82.9 | I34: 70.45 | J34: 合格
A35: 33 | B35: 曹晓雨 | C35: 红桥区卫健委-区属社区卫生服务中心 | D35: 专技岗(临床医生) | E35: 130981199407180363 | F35: 1907130478 | G35: 56 | H35: 83.5 | I35: 69.75 | J35: 合格
A36: 34 | B36: 李洋 | C36: 红桥区卫健委-区属社区卫生服务中心 | D36: 专技岗(临床医生) | E36: 120113199112131634 | F36: 1907130502 | G36: 53 | H36: 84.7 | I36: =H36*0.5+G36*0.5 -> 68.85 | J36: 需复查
A37: 35 | B37: 刘嘉诚 | C37: 红桥区卫健委-区属社区卫生服务中心 | D37: 专技岗(中医临床医生1) | E37: 120102199303292917 | F37: 1907130641 | G37: 65 | H37: 85.2 | I37: =H37*0.5+G37*0.5 -> 75.1 | J37: 合格
A38: 36 | B38: 刘一平 | C38: 红桥区卫健委-区属社区卫生服务中心 | D38: 专技岗(中医临床医生1) | E38: 130824198612206027 | F38: 1907130714 | G38: 66 | H38: 82.5 | I38: 74.25 | J38: 合格
A39: 37 | B39: 孙婷 | C39: 红桥区卫健委-区属社区卫生服务中心 | D39: 专技岗(中医临床医生1) | E39: 120107199112282427 | F39: 1907130591 | G39: 68 | H39: 79.9 | I39: 73.95 | J39: 合格
A40: 38 | B40: 韩旭 | C40: 红桥区卫健委-区属社区卫生服务中心 | D40: 专技岗(中医临床医生1) | E40: 120105199410141240 | F40: 1907130653 | G40: 59 | H40: 87.0 | I40: 73 | J40: 合格
A41: 39 | B41: 何结兵 | C41: 红桥区卫健委-疾病预防控制中心 | D41: 专技岗(公卫医生2) | E41: 340827199411304715 | F41: 1907130229 | G41: 62 | H41: 84.4 | I41: 73.2 | J41: 合格
A42: 40 | B42: 曹文秀 | C42: 红桥区卫健委-疾病预防控制中心 | D42: 专技岗(公卫医生2) | E42: 141124199106150023 | F42: 1907130240 | G42: 61 | H42: 84.9 | I42: 72.95 | J42: 合格
A43: 41 | B43: 李婷雨 | C43: 红桥区卫健委-疾病预防控制中心 | D43: 专技岗(公卫医生2) | E43: 130224199506290060 | F43: 1907130227 | G43: 59 | H43: 84.4 | I43: 71.7 | J43: 因特殊情况，需补查
A44: 42 | B44: 李娆达 | C44: 红桥区卫健委-红桥医院 | D44: 专技岗(护理) | E44: 120223199408292662 | F44: 1907130176 | G44: 58 | H44: 80.6 | I44: 69.3 | J44: 合格
A45: 43 | B45: 曹雨 | C45: 红桥区卫健委-红桥医院 | D45: 专技岗(护理) | E45: 120223199404285043 | F45: 1907130175 | G45: 46 | H45: 80.7 | I45: 63.35 | J45: 未查
A46: 44 | B46: 陈昱 | C46: 红桥区卫健委-区属社区卫生服务中心 | D46: 专技岗(中西医临床医生) | E46: 130105199203101512 | F46: 1907130543 | G46: 70 | H46: 78.9 | I46: 74.45 | J46: 需复查
A47: 45 | B47: 胡桢青 | C47: 红桥区卫健委-区属社区卫生服务中心 | D47: 专技岗(中西医临床医生) | E47: 43022319920613874X | F47: 1907130538 | G47: 60 | H47: 84.0 | I47: 72 | J47: 合格
A48: 46 | B48: 靳知 | C48: 红桥区卫健委-区属社区卫生服务中心 | D48: 专技岗(护理) | E48: 120105199006046022 | F48: 1907130414 | G48: 50 | H48: 87.1 | I48: =H48*0.5+G48*0.5 -> 68.55 | J48: 合格
A49: 47 | B49: 马兰兰 | C49: 红桥区卫健委-区属社区卫生服务中心 | D49: 专技岗(护理) | E49: 130923198901261021 | F49: 1907130455 | G49: 50 | H49: 86.9 | I49: 68.45 | J49: 合格
A50: 48 | B50: 崔靖怡 | C50: 红桥区卫健委-区属社区卫生服务中心 | D50: 专技岗(护理) | E50: 120110199601081827 | F50: 1907130458 | G50: 47 | H50: 88.2 | I50: 67.6 | J50: 合格
A51: 49 | B51: 满小琪 | C51: 红桥区卫健委-区属社区卫生服务中心 | D51: 专技岗(护理) | E51: 120223199407142021 | F51: 1907130417 | G51: 51 | H51: 83.7 | I51: 67.35 | J51: 合格
A52: 50 | B52: 叶丽娜 | C52: 红桥区卫健委-区属社区卫生服务中心 | D52: 专技岗(护理) | E52: 120106199510237529 | F52: 1907130441 | G52: 50 | H52: 82.5 | I52: 66.25 | J52: 合格
A53: 51 | B53: 李月婷 | C53: 红桥区卫健委-疾病预防控制中心 | D53: 管理岗 | E53: 120104199706223820 | F53: 1907130034 | G53: 74 | H53: 85.4 | I53: =H53*0.5+G53*0.5 -> 79.7 | J53: 合格
A54: 52 | B54: 张雨凡 | C54: 红桥区卫健委-红桥医院 | D54: 专技岗(临床医生1) | E54: 13108119891007002X | F54: 1907130181 | G54: 69 | H54: 84.8 | I54: 76.9 | J54: 合格
A55: 53 | B55: 高妍 | C55: 红桥区卫健委-区属社区卫生服务中心 | D55: 专技岗(公卫医生) | E55: 120108199412251020 | F55: 1907130383 | G55: 53 | H55: 85.9 | I55: 69.45 | J55: 合格
A56: 54 | B56: 赵娟娟 | C56: 红桥区卫健委-区属社区卫生服务中心 | D56: 专技岗(公卫医生) | E56: 341221199503071082 | F56: 1907130389 | G56: 50 | H56: 80.4 | I56: 65.2 | J56: 合格
A57: 55 | B57: 张洪达 | C57: 红桥区卫健委-区属社区卫生服务中心 | D57: 专技岗(公卫医生) | E57: 120224198911226613 | F57: 1907130381 | G57: 49 | H57: 79.9 | I57: 64.45 | J57: 合格
A58: 56 | B58: 郑梦丹 | C58: 红桥区卫健委-区属社区卫生服务中心 | D58: 专技岗(公卫医生) | E58: 130627199604150046 | F58: 1907130387 | G58: 47 | H58: 80.9 | I58: 63.95 | J58: 合格
A59: 57 | B59: 崔晓晨 | C59: 红桥区卫健委-区属社区卫生服务中心 | D59: 专技岗(超声医生) | E59: 12022219960120754X | F59: 1907130369 | G59: 53 | H59: 84.9 | I59: 68.95 | J59: 合格
A60: 58 | B60: 路欣 | C60: 红桥区卫健委-口腔医院 | D60: 专技岗(口腔临床医生2) | E60: 130929199308200925 | F60: 1907130367 | G60: 47 | H60: 88.7 | I60: 67.85 | J60: 合格
A61: 59 | B61: 刘婷婷 | C61: 红桥区卫健委-口腔医院 | D61: 专技岗(口腔临床医生2) | E61: 120113198810050028 | F61: 1907130357 | G61: 50 | H61: 83.6 | I61: 66.8 | J61: 合格
A62: 60 | B62: 胡嘉成 | C62: 红桥区卫健委-红桥医院 | D62: 专技岗(麻醉医生) | E62: 120101199503202537 | F62: 1907130195 | G62: 66 | H62: 83.3 | I62: 74.65 | J62: 合格
A63: 61 | B63: 姜小丽 | C63: 红桥区卫健委-妇女儿童保健和计划生育服务中心 | D63: 专技岗(药房) | E63: 654301198905055529 | F63: 1907130159 | G63: 63 | H63: 82.7 | I63: =H63*0.5+G63*0.5 -> 72.85 | J63: 合格
A64: 62 | B64: 张菲菲 | C64: 红桥区卫健委-妇女儿童保健和计划生育服务中心 | D64: 专技岗(临床医生) | E64: 130425198905267127 | F64: 1907130126 | G64: 68 | H64: 87.4 | I64: =H64*0.5+G64*0.5 -> 77.7 | J64: 未查
